bitfinex-derivatives/quotes_BTCF0:USTF0_20260131
["timestamp","ask_amount","ask_price","bid_price","bid_amount"]
[1769836775679,0.04147468,84064.0,84050.0,0.09536032]
[1769836792596,0.04147468,84064.0,84049.0,0.04066706]
[1769836792892,0.04147468,84064.0,84050.0,0.09536032]
[1769836793694,0.04147468,84064.0,84052.0,0.005]
[1769836794592,0.04147468,84064.0,84053.0,0.09536032]
[1769836794795,0.04147468,84064.0,84053.0,0.19291032]
[1769836800495,0.03851279,84060.0,84053.0,0.09366221]
[1769836800792,0.03851279,84057.0,84052.0,1.9e-07]
[1769836800982,0.03851279,84057.0,84048.0,0.1072]
[1769836801183,0.03851279,84057.0,84049.0,0.09536032]
[1769836801882,0.03851279,84057.0,84048.0,0.1072]
[1769836802086,0.03851279,84057.0,84048.0,0.1032723]
[1769836802392,0.03851279,84057.0,84047.0,1.9e-07]
[1769836803896,0.432876,84058.0,84038.0,0.1072]
[1769836803897,0.03851279,84048.0,84038.0,0.1072]
[1769836804098,0.03851279,84048.0,84039.0,0.09536032]
[1769836808595,0.011917,84047.0,84039.0,0.09536032]
[1769836812610,0.04105588,84046.0,84036.0,0.08024]
[1769836819206,0.011918,84045.0,84036.0,0.08024]
[1769836819819,0.011918,84045.0,84037.0,0.09536032]
[1769836820802,0.05297388,84045.0,84037.0,0.09536032]
[1769836821009,0.10547143,84044.0,84037.0,0.09536032]
[1769836821211,0.10547143,84043.0,84037.0,0.09536032]
[1769836821412,0.05297388,84045.0,84037.0,0.09536032]
[1769836821714,0.10547528,84044.0,84037.0,0.09536032]
[1769836821907,0.10547528,84043.0,84037.0,0.09536032]
[1769836822106,0.05297388,84045.0,84037.0,0.09536032]
[1769836822306,0.10548033,84044.0,84037.0,0.09536032]
[1769836822506,0.10548033,84043.0,84036.0,0.08024]
[1769836822706,0.05297388,84045.0,84037.0,0.09536032]
[1769836823012,0.011918,84043.0,84037.0,0.09457286]
[1769836823202,0.011918,84043.0,84036.0,0.08024]
[1769836823402,0.011918,84043.0,84036.0,0.17481286]
[1769836823599,0.1054871,84042.0,84036.0,0.17481286]
[1769836823800,0.011918,84043.0,84030.0,0.03950013]
[1769836824004,0.10548714,84042.0,84030.0,0.03950013]
[1769836824217,0.011918,84043.0,84030.0,0.03950013]
[1769836824516,0.10549016,84042.0,84030.0,0.03950013]
[1769836824711,0.011918,84043.0,84030.0,0.03950013]
[1769836824899,0.10549038,84042.0,84030.0,0.03950013]
[1769836825100,0.10550259,84041.0,84030.0,0.03950013]
[1769836825408,0.011918,84043.0,84030.0,0.03950013]
[1769836825609,0.1055034,84042.0,84030.0,0.03950013]
[1769836825906,0.011918,84043.0,84030.0,0.03950013]
[1769836825907,0.1055034,84041.0,84030.0,0.03950013]
[1769836826103,0.011918,84043.0,84030.0,0.03950013]
[1769836826299,0.10551664,84042.0,84030.0,0.03950013]
[1769836826506,0.10551664,84041.0,84030.0,0.03950013]
[1769836826710,0.04105588,84042.0,84028.0,0.10724]
[1769836826904,0.10551741,84041.0,84028.0,0.10724]
[1769836827109,0.04105588,84042.0,84028.0,0.10724]
[1769836827310,0.10553613,84041.0,84028.0,0.10724]
[1769836827516,0.04105588,84042.0,84028.0,0.14674013]
[1769836827714,0.10553396,84041.0,84028.0,0.14674013]
[1769836828019,0.011918,84043.0,84028.0,0.14674013]
[1769836828203,0.10555076,84042.0,84028.0,0.14674013]
[1769836828406,0.10555076,84041.0,84028.0,0.14674013]
[1769836828604,0.10555076,84040.0,84028.0,0.14674013]
[1769836828906,0.011918,84043.0,84028.0,0.14674013]
[1769836829209,0.10557436,84042.0,84028.0,0.03950013]
[1769836829408,0.10557436,84041.0,84028.0,0.03950013]
[1769836829609,0.10557436,84040.0,84028.0,0.03950013]
[1769836829810,0.10557436,84039.0,84028.0,0.03950013]
[1769836830115,0.011918,84043.0,84028.0,0.03950013]
[1769836830302,0.10574636,84042.0,84028.0,0.03950013]
[1769836830501,0.10574636,84041.0,84028.0,0.03950013]
[1769836830704,0.10574636,84040.0,84028.0,0.03950013]
[1769836830905,0.011918,84043.0,84028.0,0.03950013]
[1769836831315,0.10577049,84042.0,84028.0,0.03950013]
[1769836831505,0.011918,84043.0,84028.0,0.03950013]
[1769836831705,0.1057704,84042.0,84028.0,0.03950013]
[1769836831906,0.011918,84043.0,84028.0,0.03950013]
[1769836832116,0.10577035,84042.0,84028.0,0.03950013]
[1769836832417,0.05297288,84046.0,84028.0,0.03950013]
[1769836832617,0.10579869,84045.0,84028.0,0.03950013]
[1769836832818,0.10579869,84044.0,84028.0,0.03950013]
[1769836833019,0.10579869,84043.0,84028.0,0.03950013]
[1769836833316,0.10579869,84042.0,84028.0,0.03950013]
[1769836833515,0.10579869,84041.0,84028.0,0.03950013]
[1769836833717,0.05297288,84046.0,84028.0,0.03950013]
[1769836833907,0.10583782,84045.0,84028.0,0.03950013]
[1769836834108,0.10583782,84044.0,84028.0,0.03950013]
[1769836834310,0.10583782,84043.0,84028.0,0.03950013]
[1769836834510,0.10583782,84042.0,84028.0,0.03950013]
[1769836834709,0.10583782,84041.0,84028.0,0.03950013]
[1769836835014,0.05297288,84046.0,84028.0,0.03950013]
[1769836835315,0.10584033,84045.0,84028.0,0.03950013]
[1769836835511,0.10584033,84044.0,84028.0,0.03950013]
[1769836835706,0.10584033,84043.0,84028.0,0.03950013]
[1769836835906,0.10584033,84042.0,84028.0,0.03950013]
[1769836836107,0.10584033,84041.0,84028.0,0.03950013]
[1769836836317,0.05297288,84046.0,84028.0,0.03950013]
[1769836836512,0.10584494,84045.0,84028.0,0.03950013]
[1769836836720,0.10584494,84044.0,84028.0,0.03950013]
[1769836836913,0.10584494,84043.0,84028.0,0.03950013]
[1769836837219,0.10584494,84042.0,84028.0,0.03950013]
[1769836837418,0.10584494,84041.0,84028.0,0.03950013]
[1769836837716,0.10585188,84040.0,84028.0,0.03950013]
[1769836837906,0.05297288,84046.0,84028.0,0.03950013]
[1769836838107,0.1058522,84045.0,84028.0,0.03950013]
[1769836838311,0.1058522,84044.0,84028.0,0.03950013]
[1769836838518,0.1058522,84043.0,84028.0,0.03950013]
[1769836838717,0.1058522,84042.0,84028.0,0.03950013]
[1769836838914,0.1058522,84041.0,84028.0,0.03950013]
[1769836839221,0.1058522,84040.0,84028.0,0.03950013]
[1769836839409,0.432957,84048.0,84028.0,0.03950013]
[1769836839610,0.1058824,84047.0,84028.0,0.03950013]
[1769836839910,0.1058824,84046.0,84028.0,0.03950013]
[1769836840102,0.1058824,84045.0,84028.0,0.03950013]
[1769836840309,0.1058824,84044.0,84028.0,0.03950013]
[1769836840509,0.1058824,84043.0,84028.0,0.03950013]
[1769836840709,0.1058824,84042.0,84028.0,0.03950013]
[1769836840909,0.1058824,84041.0,84028.0,0.03950013]
[1769836841215,0.1058824,84040.0,84028.0,0.03950013]
[1769836841413,0.04329516,84047.0,84028.0,0.03950013]
[1769836841624,0.105894,84046.0,84028.0,0.03950013]
[1769836841812,0.105894,84045.0,84028.0,0.03950013]
[1769836842014,0.105894,84044.0,84028.0,0.03950013]
[1769836842213,0.105894,84043.0,84028.0,0.03950013]
[1769836842535,0.105894,84042.0,84028.0,0.03950013]
[1769836842723,0.105894,84041.0,84028.0,0.03950013]
[1769836843013,0.105894,84040.0,84028.0,0.03950013]
[1769836843223,0.04329516,84047.0,84028.0,0.03950013]
[1769836843224,0.10724,84046.0,84028.0,0.03950013]
[1769836843404,0.10588584,84045.0,84028.0,0.03950013]
[1769836843610,0.04329516,84043.0,84028.0,0.03950013]
[1769836843806,0.10588584,84042.0,84028.0,0.03950013]
[1769836844119,0.10588584,84041.0,84028.0,0.03950013]
[1769836844418,0.10588584,84040.0,84028.0,0.03950013]
[1769836844717,0.04329516,84043.0,84028.0,0.03950013]
[1769836844919,0.1052561,84042.0,84028.0,0.03950013]
[1769836845119,0.1052561,84041.0,84028.0,0.03950013]
[1769836845314,0.1052561,84040.0,84028.0,0.03950013]
[1769836845514,0.04329516,84043.0,84028.0,0.03950013]
[1769836845723,0.10525798,84042.0,84028.0,0.03950013]
[1769836846018,0.10525798,84041.0,84028.0,0.03950013]
[1769836846222,0.10525798,84040.0,84028.0,0.03950013]
[1769836846522,0.04329516,84043.0,84028.0,0.03950013]
[1769836846820,0.10525883,84042.0,84028.0,0.03950013]
[1769836847021,0.14855399,84041.0,84024.0,0.04254468]
[1769836847321,0.14855399,84040.0,84024.0,0.04254468]
[1769836847516,0.04329516,84040.0,84024.0,0.04254468]
[1769836848920,0.04329516,84044.0,84024.0,0.04254468]
[1769836849219,0.14855694,84043.0,84024.0,0.04254468]
[1769836849415,0.14855694,84042.0,84024.0,0.04254468]
[1769836849617,0.10526178,84041.0,84024.0,0.04254468]
[1769836851415,0.10526178,84040.0,84024.0,0.04254468]
[1769836851616,0.05521316,84045.0,84024.0,0.04254468]
[1769836851924,0.1052662,84044.0,84024.0,0.04254468]
[1769836852118,0.1052662,84043.0,84024.0,0.04254468]
[1769836852319,0.1052662,84042.0,84024.0,0.04254468]
[1769836852518,0.1052662,84041.0,84024.0,0.04254468]
[1769836852718,0.1052662,84040.0,84024.0,0.04254468]
[1769836852913,0.04329516,84044.0,84024.0,0.04254468]
[1769836853115,0.10526982,84043.0,84024.0,0.04254468]
[1769836853316,0.10526982,84042.0,84024.0,0.04254468]
[1769836853619,0.10526982,84041.0,84024.0,0.04254468]
[1769836853824,0.10526982,84040.0,84024.0,0.04254468]
[1769836854014,0.04329516,84044.0,84024.0,0.04254468]
[1769836854321,0.10527608,84043.0,84024.0,0.04254468]
[1769836854521,0.10527608,84042.0,84024.0,0.04254468]
[1769836854720,0.10527608,84041.0,84024.0,0.04254468]
[1769836855018,0.10527608,84040.0,84024.0,0.04254468]
[1769836855215,0.10527608,84039.0,84024.0,0.04254468]
[1769836855415,0.04329516,84043.0,84024.0,0.04254468]
[1769836855719,0.10527663,84042.0,84024.0,0.04254468]
[1769836855920,0.10527663,84041.0,84024.0,0.04254468]
[1769836856120,0.10527663,84040.0,84024.0,0.04254468]
[1769836856421,0.04329516,84043.0,84024.0,0.04254468]
[1769836856422,0.10527663,84039.0,84024.0,0.04254468]
[1769836856617,0.04329516,84043.0,84024.0,0.04254468]
[1769836856817,0.10527643,84042.0,84024.0,0.04254468]
[1769836857019,0.10527643,84041.0,84024.0,0.04254468]
[1769836857226,0.10527643,84040.0,84024.0,0.04254468]
[1769836857524,0.10527643,84039.0,84024.0,0.04254468]
[1769836857825,0.04329516,84043.0,84024.0,0.04254468]
[1769836858024,0.10527912,84042.0,84024.0,0.04254468]
[1769836858224,0.10527912,84041.0,84024.0,0.04254468]
[1769836858425,0.10527912,84040.0,84024.0,0.04254468]
[1769836858625,0.10527912,84039.0,84024.0,0.04254468]
[1769836858826,0.04329516,84043.0,84024.0,0.04254468]
[1769836859027,0.10527683,84042.0,84024.0,0.04254468]
[1769836859222,0.10527683,84041.0,84024.0,0.04254468]
[1769836859420,0.10527683,84040.0,84024.0,0.04254468]
[1769836859623,0.10527683,84039.0,84024.0,0.04254468]
[1769836859925,0.04329516,84043.0,84024.0,0.04254468]
[1769836860127,0.105277,84042.0,84024.0,0.04254468]
[1769836860323,0.105277,84041.0,84024.0,0.04254468]
[1769836860621,0.105277,84040.0,84024.0,0.04254468]
[1769836860823,0.105277,84039.0,84024.0,0.04254468]
[1769836861024,0.10527663,84038.0,84024.0,0.04254468]
[1769836861224,0.10527663,84037.0,84024.0,0.04254468]
[1769836861414,0.04329516,84043.0,84024.0,0.04254468]
[1769836861620,0.10527521,84042.0,84024.0,0.04254468]
[1769836861820,0.10527521,84041.0,84024.0,0.04254468]
[1769836862114,0.10527521,84040.0,84024.0,0.04254468]
[1769836862313,0.04329516,84038.0,84023.0,0.005]
[1769836862514,0.04329516,84036.0,84023.0,0.005]
[1769836863728,0.04329516,84034.0,84022.0,0.10724]
[1769836873436,0.04329516,84034.0,84020.0,0.09054]
[1769836880147,0.04329516,84034.0,84020.0,0.13408409]
[1769836884937,0.04329516,84034.0,84020.0,0.04354409]
[1769836887541,0.04329516,84034.0,84021.0,0.06449]
[1769836889344,0.10724,84035.0,84021.0,0.06449]
[1769836889641,0.10724,84035.0,84021.0,0.10803409]
[1769836892043,0.04508719,84038.0,84021.0,0.10803409]
[1769836892242,0.21240222,84037.0,84021.0,0.10803409]
[1769836892542,0.10724,84037.0,84021.0,0.10803409]
[1769836895639,0.10724,84037.0,84022.0,0.04354409]
[1769836897846,0.10724,84037.0,84022.0,0.04854409]
[1769836901250,0.04444836,84041.0,84022.0,0.04854409]
[1769836901449,0.10516726,84040.0,84022.0,0.04854409]
[1769836901650,0.10516844,84039.0,84022.0,0.04854409]
[1769836901850,0.15168836,84041.0,84022.0,0.04854409]
[1769836902049,0.10516833,84040.0,84022.0,0.04854409]
[1769836902252,0.10516833,84039.0,84022.0,0.04854409]
[1769836902453,0.15168836,84041.0,84022.0,0.04854409]
[1769836902656,0.10516803,84040.0,84022.0,0.04854409]
[1769836902849,0.10516803,84039.0,84022.0,0.04854409]
[1769836903048,0.15168836,84041.0,84022.0,0.04854409]
[1769836903249,0.10516715,84040.0,84022.0,0.04854409]
[1769836903454,0.10516715,84039.0,84022.0,0.04854409]
[1769836903750,0.15168836,84041.0,84022.0,0.04854409]
[1769836903953,0.14978215,84040.0,84022.0,0.04854409]
[1769836904152,0.10533379,84039.0,84022.0,0.04854409]
[1769836904357,0.04444836,84040.0,84022.0,0.04854409]
[1769836904548,0.10533486,84039.0,84022.0,0.04854409]
[1769836904854,0.04444836,84040.0,84022.0,0.04354409]
[1769836905052,0.10533486,84039.0,84022.0,0.04354409]
[1769836905351,0.04444836,84040.0,84022.0,0.04354409]
[1769836905655,0.10533225,84039.0,84022.0,0.04354409]
[1769836905953,0.04444836,84040.0,84022.0,0.04354409]
[1769836906256,0.10531554,84039.0,84022.0,0.04354409]
[1769836906552,0.04444836,84040.0,84022.0,0.04354409]
[1769836906752,0.1053166,84039.0,84023.0,0.04898471]
[1769836906955,0.04444836,84040.0,84023.0,0.04898471]
[1769836907145,0.10531664,84039.0,84023.0,0.04398471]
[1769836907346,0.04444836,84040.0,84023.0,0.04398471]
[1769836907645,0.1053185,84039.0,84023.0,0.04398471]
[1769836907845,0.10724,84041.0,84023.0,0.04398471]
[1769836908047,0.10531842,84040.0,84023.0,0.04398471]
[1769836908249,0.10724,84041.0,84023.0,0.04398471]
[1769836908444,0.10532073,84040.0,84023.0,0.04398471]
[1769836908650,0.10724,84041.0,84023.0,0.04398471]
[1769836908852,0.10532064,84040.0,84023.0,0.04398471]
[1769836909047,0.04444836,84040.0,84021.0,0.06449]
[1769836909352,0.10532157,84039.0,84022.0,0.04398471]
[1769836909554,0.10532157,84038.0,84022.0,0.04398471]
[1769836909853,0.04444836,84040.0,84022.0,0.04398471]
[1769836910053,0.10532393,84039.0,84022.0,0.04398471]
[1769836910253,0.04444836,84040.0,84022.0,0.04398471]
[1769836910453,0.1053266,84039.0,84022.0,0.04398471]
[1769836910659,0.04444836,84040.0,84022.0,0.04398471]
[1769836910861,0.10532669,84039.0,84022.0,0.04398471]
[1769836911055,0.10532622,84038.0,84022.0,0.04398471]
[1769836911254,0.10532622,84037.0,84022.0,0.04398471]
[1769836911456,0.04444836,84040.0,84022.0,0.04398471]
[1769836911656,0.10533395,84039.0,84022.0,0.04398471]
[1769836911857,0.10533395,84038.0,84022.0,0.04398471]
[1769836912057,0.10533395,84037.0,84022.0,0.04398471]
[1769836912262,0.04444836,84040.0,84022.0,0.04398471]
[1769836912463,0.10534523,84039.0,84022.0,0.04398471]
[1769836912665,0.10534523,84038.0,84022.0,0.04398471]
[1769836912863,0.10534523,84037.0,84022.0,0.04398471]
[1769836913064,0.04444836,84040.0,84022.0,0.04398471]
[1769836913267,0.10534528,84039.0,84022.0,0.04398471]
[1769836913459,0.10534528,84038.0,84022.0,0.04398471]
[1769836913659,0.10534528,84037.0,84022.0,0.04398471]
[1769836913861,0.04444836,84040.0,84022.0,0.04398471]
[1769836914061,0.10534771,84039.0,84022.0,0.04398471]
[1769836914268,0.10534771,84038.0,84022.0,0.04398471]
[1769836914470,0.10534771,84037.0,84022.0,0.04398471]
[1769836914670,0.04444836,84040.0,84022.0,0.04398471]
[1769836914864,0.14979838,84039.0,84022.0,0.04398471]
[1769836915062,0.10535002,84038.0,84022.0,0.04398471]
[1769836915266,0.10535002,84037.0,84022.0,0.04398471]
[1769836915458,0.04444836,84039.0,84022.0,0.04398471]
[1769836915668,0.10535026,84038.0,84022.0,0.04398471]
[1769836915970,0.10535026,84037.0,84022.0,0.04398471]
[1769836916169,0.04444836,84039.0,84022.0,0.04398471]
[1769836916369,0.10535026,84038.0,84022.0,0.04398471]
[1769836916570,0.10535026,84037.0,84022.0,0.04398471]
[1769836916763,0.04444836,84039.0,84022.0,0.04398471]
[1769836916964,0.10535201,84038.0,84022.0,0.04398471]
[1769836917163,0.10535201,84037.0,84022.0,0.04398471]
[1769836917363,0.04444836,84039.0,84022.0,0.04398471]
[1769836917564,0.10535429,84038.0,84022.0,0.04398471]
[1769836917863,0.10535429,84037.0,84022.0,0.04398471]
[1769836918063,0.04444836,84039.0,84022.0,0.04398471]
[1769836918265,0.10535443,84038.0,84022.0,0.04398471]
[1769836918466,0.10535443,84037.0,84022.0,0.04398471]
[1769836918665,0.04444836,84039.0,84022.0,0.04398471]
[1769836918864,0.10535466,84038.0,84022.0,0.04398471]
[1769836919073,0.10535466,84037.0,84022.0,0.04398471]
[1769836919373,0.04444836,84039.0,84022.0,0.04398471]
[1769836919572,0.10535453,84038.0,84022.0,0.04398471]
[1769836919773,0.10535453,84037.0,84022.0,0.04398471]
[1769836920075,0.04444836,84039.0,84022.0,0.04398471]
[1769836920266,0.10535213,84038.0,84022.0,0.04398471]
[1769836920465,0.10535213,84037.0,84022.0,0.04398471]
[1769836920676,0.04444836,84039.0,84022.0,0.04398471]
[1769836922581,0.10724,84041.0,84030.0,0.04398471]
[1769836922876,0.10724,84053.0,84030.0,0.04398471]
[1769836923076,0.10724,84053.0,84029.0,0.30850023]
[1769836923077,0.10724,84053.0,84041.0,0.04398471]
[1769836923476,0.10224,84053.0,84041.0,0.04398471]
[1769836923880,0.04444836,84052.0,84031.0,0.04398471]
[1769836933198,0.04444836,84052.0,84032.0,0.04496833]
[1769836933897,0.04444836,84052.0,84036.0,0.09522814]
[1769836934095,0.04444836,84052.0,84036.0,0.14019647]
[1769836936599,0.04444836,84052.0,84036.0,0.04496833]
[1769836943301,0.10224,84053.0,84036.0,0.04496833]
[1769836943505,0.10224,84053.0,84038.0,0.04496833]
[1769836944003,0.10724,84055.0,84039.0,0.04496833]
[1769836944198,0.04511018,84060.0,84039.0,0.04496833]
[1769836944401,0.04511018,84060.0,84040.0,0.04496833]
[1769836944601,0.15235018,84059.0,84040.0,0.04496833]
[1769836945097,0.10724,84059.0,84043.0,0.04496833]
[1769836945400,0.10724,84059.0,84050.0,0.04496833]
[1769836947306,0.10724,84069.0,84051.0,0.04496833]
[1769836947509,0.10224,84069.0,84051.0,0.04496833]
[1769836948307,0.14735018,84069.0,84051.0,0.04496833]
[1769836949007,0.04511018,84068.0,84051.0,0.04496833]
[1769836951396,0.04511018,84068.0,84050.0,0.09522814]
[1769836951708,0.04511018,84068.0,84050.0,0.04496833]
[1769836952104,0.04511018,84068.0,84050.0,0.14019647]
[1769836952409,0.04511018,84068.0,84051.0,0.04496833]
[1769836952908,0.04511018,84068.0,84051.0,0.14019647]
[1769836953109,0.04511018,84068.0,84051.0,0.04496833]
[1769836967121,0.04452998,84067.0,84048.0,0.09031]
[1769836967317,0.04452998,84066.0,84048.0,0.09031]
[1769836969320,0.1072,84067.0,84011.0,0.23832416]
[1769836969321,0.20112047,84058.0,84011.0,0.23832416]
[1769836969519,0.01192,84028.0,83995.0,0.04582309]
[1769836969714,0.011921,84023.0,83996.0,0.11590577]
[1769836970022,0.23001386,84022.0,83996.0,0.11590577]
[1769836970214,0.01688135,84016.0,83997.0,0.11590577]
[1769836970410,0.01688135,84014.0,83996.0,0.11590577]
[1769836970615,0.1394775,84013.0,83996.0,0.11590577]
[1769836970817,0.12408135,84012.0,83997.0,0.11590577]
[1769836971017,0.1072,84011.0,83996.0,0.11590577]
[1769836971418,0.1072,84011.0,83995.0,0.04582309]
[1769836971419,0.1072,84011.0,83997.0,0.11590577]
[1769836971627,0.1072,84011.0,83996.0,0.11590577]
[1769836972013,0.1072,84011.0,83995.0,0.04582309]
[1769836972014,0.119122,84011.0,83997.0,0.11590577]
[1769836972218,0.119122,84011.0,83996.0,0.11590577]
[1769836972718,0.119122,84011.0,83997.0,0.11590577]
[1769836972920,0.119122,84011.0,83996.0,0.11590577]
[1769836973427,0.119122,84011.0,83997.0,0.11590577]
[1769836973618,0.119122,84011.0,83996.0,0.11590577]
[1769836974013,0.119122,84011.0,83997.0,0.11590577]
[1769836974218,0.1072,84011.0,83996.0,0.11590577]
[1769836974725,0.1072,84011.0,83997.0,0.11590577]
[1769836974926,0.1072,84011.0,83996.0,0.11590577]
[1769836975326,0.1072,84011.0,83997.0,0.11590577]
[1769836975519,0.1072,84011.0,83996.0,0.11590577]
[1769836975927,0.1072,84011.0,83997.0,0.11590577]
[1769836976119,0.1072,84011.0,83996.0,0.11590577]
[1769836976320,0.1072,84011.0,83996.0,0.16248465]
[1769836976520,0.1072,84011.0,83997.0,0.11590577]
[1769836976923,0.1072,84011.0,83998.0,0.11590577]
[1769836977124,0.1072,84011.0,83997.0,0.11590577]
[1769836977521,0.1072,84011.0,83998.0,0.11590577]
[1769836977829,0.1072,84011.0,83997.0,0.11590577]
[1769836978328,0.1072,84011.0,83998.0,0.11590577]
[1769836978530,0.1072,84011.0,83997.0,0.11590577]
[1769836978934,0.1072,84011.0,83998.0,0.11590577]
[1769836979129,0.1072,84011.0,83997.0,0.11590577]
[1769836979630,0.1072,84011.0,83998.0,0.11590577]
[1769836979930,0.1072,84011.0,83997.0,0.11590577]
[1769836980430,0.1072,84011.0,83998.0,0.11590577]
[1769836980625,0.0317227,84045.0,84011.0,0.04676237]
[1769836980831,0.0436427,84031.0,84011.0,0.04676237]
[1769836981131,0.0436427,84031.0,84001.0,0.011924]
[1769836981132,0.0317227,84029.0,84013.0,0.04676237]
[1769836981524,0.0317227,84029.0,84014.0,0.11590577]
[1769836981829,0.01192,84028.0,84014.0,0.11590577]
[1769836982033,0.0317227,84029.0,84015.0,0.11590577]
[1769836982221,0.0317227,84029.0,84014.0,0.11590577]
[1769836982617,0.0317227,84029.0,84015.0,0.11590577]
[1769836982819,0.0317227,84029.0,84014.0,0.11590577]
[1769836983120,0.10724,84030.0,83990.0,0.0184092]
[1769836983121,0.03117465,83999.0,83990.0,0.0184092]
[1769836983322,0.00027828,83997.0,83970.0,0.0575005]
[1769836983518,0.10724,83998.0,83970.0,0.0575005]
[1769836983519,0.00027828,83991.0,83970.0,0.0575005]
[1769836983727,0.00027828,83991.0,83972.0,0.0575005]
[1769836984121,0.00038123,83990.0,83972.0,0.07591032]
[1769836984426,0.00038123,83990.0,83972.0,0.0575005]
[1769836984731,0.00038123,83990.0,83973.0,0.01840982]
[1769836985431,0.011925,83989.0,83973.0,0.01840982]
[1769836985632,0.011925,83989.0,83974.0,0.01840982]
[1769836986033,0.011925,83989.0,83975.0,0.01840982]
[1769836986235,0.011925,83989.0,83974.0,0.01840982]
[1769836986638,0.011925,83989.0,83975.0,0.01840982]
[1769836986835,0.011926,83986.0,83974.0,0.01840982]
[1769836987034,0.011926,83986.0,83973.0,0.0767636]
[1769836987339,0.011926,83986.0,83976.0,0.01840982]
[1769836987637,0.011926,83986.0,83977.0,0.01840982]
[1769836987838,0.011926,83986.0,83976.0,0.01840982]
[1769836988231,0.011926,83986.0,83977.0,0.01840982]
[1769836988431,0.011926,83983.0,83973.0,0.05835378]
[1769836989738,0.011926,83989.0,83973.0,0.05835378]
[1769836990339,0.011926,83986.0,83973.0,0.05835378]
[1769836990639,0.01916843,83952.0,83910.0,0.29786289]
[1769836990846,0.011928,83973.0,83921.0,0.011935]
[1769836990847,0.01916843,83950.0,83921.0,0.011935]
[1769836991028,0.10728,83949.0,83927.0,0.011934]
[1769836991331,0.10728,83949.0,83923.0,0.011935]
[1769836991537,0.10728,83949.0,83924.0,0.10728]
[1769836991841,0.00014388,83948.0,83924.0,0.10728]
[1769836992741,0.00014388,83948.0,83925.0,0.05835378]
[1769836996642,0.01207488,83948.0,83925.0,0.05835378]
[1769837001350,0.011932,83945.0,83925.0,0.05835378]
[1769837004744,0.10307288,83949.0,83933.0,0.05835378]
[1769837005846,5.293e-05,83948.0,83933.0,0.05835378]
[1769837013550,5.293e-05,83948.0,83933.0,0.16571378]
[1769837013742,5.293e-05,83948.0,83934.0,0.05835378]
[1769837015244,0.14258984,83947.0,83934.0,0.05835378]
[1769837015445,5.293e-05,83948.0,83934.0,0.05835378]
[1769837015653,0.14258989,83947.0,83934.0,0.05835378]
[1769837015854,5.293e-05,83948.0,83934.0,0.05835378]
[1769837016050,0.14258997,83947.0,83934.0,0.05835378]
[1769837016254,0.14258997,83946.0,83934.0,0.05835378]
[1769837016453,0.14258997,83945.0,83934.0,0.05835378]
[1769837016654,0.14258997,83944.0,83934.0,0.05835378]
[1769837016852,0.011931,83947.0,83934.0,0.05835378]
[1769837017046,0.14265238,83946.0,83934.0,0.05835378]
[1769837017255,0.14265238,83945.0,83934.0,0.05835378]
[1769837017451,0.14265238,83944.0,83934.0,0.05835378]
[1769837017647,0.14265238,83943.0,83934.0,0.05835378]
[1769837017847,0.14265238,83942.0,83934.0,0.05835378]
[1769837018049,0.011931,83947.0,83934.0,0.05835378]
[1769837018249,0.14272704,83946.0,83934.0,0.05835378]
[1769837018451,0.14272704,83945.0,83934.0,0.05835378]
[1769837018648,0.14272704,83944.0,83934.0,0.05835378]
[1769837018848,0.14272704,83943.0,83934.0,0.05835378]
[1769837019045,0.14272704,83942.0,83934.0,0.05835378]
[1769837019249,0.14272704,83941.0,83934.0,0.05835378]
[1769837019449,0.14272704,83940.0,83934.0,0.05835378]
[1769837019756,0.14272704,83939.0,83934.0,0.05835378]
[1769837019956,0.011931,83947.0,83934.0,0.05835378]
[1769837020144,0.14293895,83946.0,83934.0,0.05835378]
[1769837020349,0.14293895,83945.0,83934.0,0.05835378]
[1769837020553,0.14293895,83944.0,83934.0,0.05835378]
[1769837020754,0.011931,83947.0,83934.0,0.05835378]
[1769837020755,0.14293895,83943.0,83934.0,0.05835378]
[1769837020961,0.14293895,83942.0,83934.0,0.05835378]
[1769837021162,0.14293895,83941.0,83934.0,0.05835378]
[1769837021360,0.14293895,83940.0,83934.0,0.05835378]
[1769837021558,0.14293895,83939.0,83934.0,0.05835378]
[1769837021754,0.14293895,83938.0,83934.0,0.05835378]
[1769837022061,0.14293895,83937.0,83934.0,0.05835378]
[1769837022260,0.011931,83947.0,83934.0,0.05835378]
[1769837022463,0.14081757,83946.0,83934.0,0.05835378]
[1769837022662,0.14081757,83945.0,83934.0,0.05835378]
[1769837022859,0.14081757,83944.0,83934.0,0.05835378]
[1769837023054,0.14081757,83943.0,83934.0,0.05835378]
[1769837023254,0.14081757,83942.0,83934.0,0.05835378]
[1769837023451,0.14081757,83941.0,83934.0,0.05835378]
[1769837023762,0.10736,83975.0,83933.0,0.10736]
[1769837023763,0.05986366,83966.0,83938.0,0.0630342]
[1769837023962,0.05986366,83966.0,83947.0,0.0630342]
[1769837024750,0.05986366,83964.0,83947.0,0.0630342]
[1769837025658,0.10736,83965.0,83947.0,0.0630342]
[1769837026551,0.16722366,83966.0,83947.0,0.0630342]
[1769837027665,0.05986366,83965.0,83947.0,0.0630342]
[1769837029460,0.05986366,83965.0,83950.0,0.09529973]
[1769837029657,0.05986366,83974.0,83957.0,0.0630342]
[1769837029855,0.10736,83973.0,83958.0,0.0630342]
[1769837030051,0.05986366,83972.0,83958.0,0.09529973]
[1769837030256,0.05986366,83972.0,83956.0,0.09529973]
[1769837031164,0.05986366,83972.0,83955.0,0.09529973]
[1769837033768,0.05986366,83972.0,83956.0,0.09529973]
[1769837034164,0.05986366,83972.0,83954.0,0.0630342]
[1769837034165,0.05986366,83972.0,83955.0,0.09529973]
[1769837035313,0.05986366,83972.0,83954.0,0.0630342]
[1769837035314,0.05986366,83972.0,83954.0,0.09529973]
[1769837038579,0.05986366,83972.0,83953.0,0.09529973]
[1769837038774,0.05986366,83970.0,83954.0,0.09529973]
[1769837039374,0.05986366,83970.0,83953.0,0.09529973]
[1769837039575,0.05986366,83970.0,83954.0,0.09529973]
[1769837041477,0.05986366,83970.0,83953.0,0.09529973]
[1769837042678,0.05986366,83970.0,83953.0,0.15833393]
[1769837044077,0.05986366,83970.0,83954.0,0.09529973]
[1769837044573,0.05986366,83970.0,83954.0,0.15833393]
[1769837045370,0.05986366,83970.0,83956.0,0.09529973]
[1769837048175,0.05986366,83970.0,83957.0,0.09529973]
[1769837048880,0.05986366,83970.0,83956.0,0.09529973]
[1769837049275,0.05986366,83970.0,83954.0,0.0630342]
[1769837049276,0.05986366,83970.0,83957.0,0.09529973]
[1769837049678,0.011924,83997.0,83958.0,0.07609736]
[1769837049881,0.0783591,84003.0,83981.0,0.07609736]
[1769837050074,0.1976021,84007.0,83981.0,0.07609736]
[1769837050274,0.1856791,84007.0,83990.0,0.27780994]
[1769837050677,0.10732,84006.0,83990.0,0.07609736]
[1769837051078,0.011921,84018.0,83991.0,0.07609736]
[1769837051079,0.1856791,84018.0,83991.0,0.07609736]
[1769837051283,0.0783591,84017.0,83991.0,0.07609736]